fUSD/lending_fUSD_20250421
["ID","MTS","AMOUNT","RATE_DAILY","PERIOD"]
[358529702,1745236238775,-500.0,0.00045973,10]
[358529704,1745236238784,-500.0,0.00045973,10]
[358529706,1745236238794,-394.901872,0.00045973,10]
[358529707,1745236238807,-161.2188929,0.00045973,10]
[358529710,1745236238816,-635.6802097,0.00045976,120]
[358529712,1745236238825,-71800.37,0.00045977,2]
[358529714,1745236238835,-212.0,0.00046,8]
[358529716,1745236238846,-150.0,0.00046012,7]
[358529718,1745236238855,-5033.48,0.00046038,2]
[358529720,1745236238865,-151.11,0.0004606,2]
[358529722,1745236238874,-500.0,0.00046167,2]
[358529724,1745236238884,-152.91,0.00046176,2]
[358529727,1745236238893,-716.52,0.00046355,2]
[358529729,1745236238902,-250.0,0.00046356,2]
[358529731,1745236238911,-1631.75636455,0.00046388,15]
[358529733,1745236238921,-296.45780896,0.00046473,10]
[358529735,1745236238930,-31061.07260233,0.00046479,2]
[358529736,1745236238939,-329.32316934,0.00046488,7]
[358529738,1745236238949,-12393.61,0.00046489,2]
[358529740,1745236238958,-585.89780411,0.00046555,70]
[358529742,1745236238967,-2120.56,0.00046577,2]
[358529744,1745236238976,-1631.75636447,0.00046653,15]
[358529746,1745236238985,-500.0,0.00046654,7]
[358529748,1745236238994,-1957.77,0.00046654,2]
[358529750,1745236239003,-487.88,0.00046654,2]
[358529752,1745236239012,-7868.97,0.00046654,2]
[358529754,1745236239021,-150.99,0.00046654,2]
[358529756,1745236239031,-9999.99,0.00046654,2]
[358529758,1745236239040,-1000.0,0.00046655,2]
[358529760,1745236239049,-1000.0,0.00046655,2]
[358529762,1745236239058,-1000.0,0.00046655,2]
[358529764,1745236239067,-1000.0,0.00046655,2]
[358529766,1745236239076,-1000.0,0.00046655,2]
[358529768,1745236239085,-1000.0,0.00046655,2]
[358529770,1745236239094,-1000.0,0.00046655,2]
[358529772,1745236239103,-1000.0,0.00046655,2]
[358529774,1745236239113,-1000.0,0.00046655,2]
[358529776,1745236239122,-1000.0,0.00046655,2]
[358529778,1745236239131,-1000.0,0.00046655,2]
[358529780,1745236239140,-1000.0,0.00046655,2]
[358529782,1745236239149,-1000.0,0.00046655,2]
[358529784,1745236239159,-1000.0,0.00046655,2]
[358529786,1745236239168,-1000.0,0.00046655,2]
[358529788,1745236239177,-1000.0,0.00046655,2]
[358529790,1745236239186,-1000.0,0.00046655,2]
[358529792,1745236239195,-1000.0,0.00046655,2]
[358529794,1745236239204,-1000.0,0.00046655,2]
[358529796,1745236239213,-1000.0,0.00046655,2]
[358529798,1745236239222,-1000.0,0.00046655,2]
[358529800,1745236239231,-1000.0,0.00046655,2]
[358529801,1745236239240,-1000.0,0.00046655,2]
[358529803,1745236239249,-1000.0,0.00046655,2]
[358529805,1745236239259,-1000.0,0.00046655,2]
[358529807,1745236239268,-1000.0,0.00046655,2]
[358529809,1745236239277,-1000.0,0.00046655,2]
[358529811,1745236239286,-1000.0,0.00046655,2]
[358529813,1745236239295,-1000.0,0.00046655,2]
[358529815,1745236239305,-1000.0,0.00046655,2]
[358529817,1745236239314,-1000.0,0.00046655,2]
[358529819,1745236239323,-1000.0,0.00046655,2]
[358529821,1745236239332,-1000.0,0.00046655,2]
[358529823,1745236239341,-1000.0,0.00046655,2]
[358529825,1745236239351,-1000.0,0.00046655,2]
[358529827,1745236239360,-1000.0,0.00046655,2]
[358529829,1745236239369,-1000.0,0.00046655,2]
[358529831,1745236239378,-1000.0,0.00046655,2]
[358529833,1745236239387,-1000.0,0.00046655,2]
[358529835,1745236239397,-1000.0,0.00046655,2]
[358529837,1745236239406,-1000.0,0.00046655,2]
[358529839,1745236239415,-1000.0,0.00046655,2]
[358529841,1745236239424,-1000.0,0.00046655,2]
[358529843,1745236239433,-1000.0,0.00046655,2]
[358529845,1745236239442,-1000.0,0.00046655,2]
[358529847,1745236239452,-1000.0,0.00046655,2]
[358529849,1745236239461,-1000.0,0.00046655,2]
[358529851,1745236239471,-1000.0,0.00046655,2]
[358529853,1745236239480,-1000.0,0.00046655,2]
[358529855,1745236239489,-1000.0,0.00046655,2]
[358529857,1745236239498,-1000.0,0.00046655,2]
[358529859,1745236239507,-1000.0,0.00046655,2]
[358529861,1745236239516,-1000.0,0.00046655,2]
[358529863,1745236239525,-1000.0,0.00046655,2]
[358529865,1745236239534,-1000.0,0.00046655,2]
[358529866,1745236239543,-1000.0,0.00046655,2]
[358529868,1745236239553,-1000.0,0.00046655,2]
[358529870,1745236239562,-1000.0,0.00046655,2]
[358529872,1745236239571,-1000.0,0.00046655,2]
[358529874,1745236239580,-1000.0,0.00046655,2]
[358529876,1745236239590,-1000.0,0.00046655,2]
[358529878,1745236239600,-501.65762717,0.00046673,10]
[358529880,1745236239609,-504.98905447,0.00046673,10]
[358529882,1745236239619,-161.97921838,0.00046673,10]
[358529884,1745236239628,-171.61267469,0.00046673,10]
[358529886,1745236239637,-500.0,0.00046673,10]
[358529888,1745236239646,-500.0,0.00046673,10]
[358529890,1745236239655,-154.17,0.00046711,120]
[358529892,1745236239664,-3266.8,0.00046711,2]
[358529894,1745236239673,-9999.99,0.00046711,2]
[358529896,1745236239682,-6764.59,0.00046737,2]
[358529898,1745236239691,-250.0,0.0004689,120]
[358529900,1745236239700,-1631.75636447,0.00046918,15]
[358529902,1745236239709,-1000.0,0.00046986,14]
[358529904,1745236239718,-2148.03,0.00046992,2]
[358529906,1745236239727,-324.2473,0.00047028,30]
[358529908,1745236239736,-3260.45,0.00047048,2]
[358529910,1745236239746,-200.0,0.00047048,2]
[358529912,1745236239755,-169.70041414,0.00047076,7]
[358529914,1745236239764,-500.0,0.00047076,7]
[358529916,1745236239773,-500.0,0.00047076,7]
[358529918,1745236239783,-500.0,0.00047076,7]
[358529920,1745236239793,-500.0,0.00047076,7]
[358529922,1745236239805,-500.0,0.00047076,7]
[358529924,1745236239814,-646.68581155,0.00047076,7]
[358529926,1745236239824,-1091.69,0.00047076,2]
[358529928,1745236239833,-341.0846403,0.00047076,7]
[358529930,1745236239843,-500.0,0.00047076,7]
[358529931,1745236239852,-500.0,0.00047076,7]
[358529933,1745236239861,-511.96903733,0.00047076,7]
[358529935,1745236239871,-518.67724656,0.00047076,7]
[358529937,1745236239881,-515.53,0.00047076,7]
[358529939,1745236239890,-3037.69,0.00047077,2]
[358529941,1745236239899,-345.8,0.00047078,120]
[358529943,1745236239908,-500.0,0.00047092,7]
[358529945,1745236239918,-500.0,0.00047092,7]
[358529947,1745236239927,-500.0,0.00047092,7]
[358529949,1745236239937,-244.45479447,0.00047092,7]
[358529951,1745236239946,-500.0,0.00047092,7]
[358529953,1745236239955,-500.0,0.00047092,7]
[358529955,1745236239964,-411.2321765,0.00047092,7]
[358529957,1745236239974,-500.0,0.00047092,7]
[358529959,1745236239983,-187.32987917,0.00047092,7]
[358529961,1745236239993,-500.0,0.00047092,7]
[358529964,1745236240002,-621.39169438,0.00047092,7]
[358529966,1745236240012,-500.0,0.00047092,7]
[358529968,1745236240021,-627.4494026,0.00047092,7]
[358529970,1745236240030,-500.0,0.00047092,7]
[358529972,1745236240040,-500.0,0.00047092,7]
[358529974,1745236240049,-500.0,0.00047092,7]
[358529975,1745236240058,-2728.34,0.00047092,7]
[358529977,1745236240068,-500.0,0.00047092,7]
[358529978,1745236240077,-953.93,0.00047092,7]
[358529979,1745236240087,-4715.6652,0.00047093,2]
[358529980,1745236240096,-1455.97,0.00047128,2]
[358529981,1745236240105,-530.09584812,0.00047142,7]
[358529982,1745236240115,-540.04179951,0.00047142,7]
[358529983,1745236240124,-500.0,0.00047142,7]
[358529984,1745236240133,-508.92842956,0.00047142,7]
[358529985,1745236240142,-500.0,0.00047142,7]
[358529986,1745236240152,-500.0,0.00047142,7]
[358529987,1745236240162,-500.0,0.00047142,7]
[358529988,1745236240171,-500.0,0.00047142,7]
[358529989,1745236240181,-500.0,0.00047142,7]
[358529990,1745236240190,-500.0,0.00047142,7]
[358529991,1745236240199,-500.0,0.00047142,7]
[358529992,1745236240208,-500.0,0.00047142,7]
[358529993,1745236240217,-300.79082128,0.00047142,7]
[358529994,1745236240226,-500.0,0.00047142,7]
[358529995,1745236240236,-500.0,0.00047142,7]
[358529996,1745236240245,-500.0,0.00047142,7]
[358529997,1745236240254,-500.0,0.00047142,7]
[358529998,1745236240263,-500.0,0.00047142,7]
[358529999,1745236240273,-500.0,0.00047142,7]
[358530000,1745236240283,-500.0,0.00047142,7]
[358530001,1745236240292,-210.32957908,0.00047142,7]
[358530002,1745236240303,-521.69765095,0.00047142,7]
[358530003,1745236240314,-500.0,0.00047142,7]
[358530004,1745236240324,-500.0,0.00047142,7]
[358530005,1745236240334,-500.0,0.00047142,7]
[358530006,1745236240345,-429.62605538,0.00047142,7]
[358530007,1745236240354,-586.10973081,0.00047142,7]
[358530008,1745236240364,-560.37630026,0.00047142,7]
[358530009,1745236240373,-205.85199651,0.00047142,7]
[358530010,1745236240498,-500.0,0.00047142,7]
[358530011,1745236240508,-703.9,0.00047142,7]
[358530012,1745236240517,-500.0,0.00047142,7]
[358530013,1745236240528,-500.0,0.00047142,7]
[358530014,1745236240540,-500.0,0.00047142,7]
[358530015,1745236240550,-500.0,0.00047142,7]
[358530016,1745236240560,-500.0,0.00047142,7]
[358530017,1745236240569,-3741.18,0.00047142,7]
[358530018,1745236240579,-500.0,0.00047142,7]
[358530019,1745236240588,-625.50746254,0.00047142,7]
[358530020,1745236240599,-500.0,0.00047142,7]
[358530021,1745236240609,-500.0,0.00047142,7]
[358530022,1745236240618,-500.0,0.00047142,7]
[358530023,1745236240628,-500.0,0.00047142,7]
[358530024,1745236240637,-358.27197136,0.00047142,7]
[358530025,1745236240646,-544.79583879,0.00047142,7]
[358530026,1745236240656,-500.0,0.00047142,7]
[358530027,1745236240664,-500.0,0.00047142,7]
[358530028,1745236240673,-500.0,0.00047142,7]
[358530029,1745236240682,-500.0,0.00047142,7]
[358530030,1745236240691,-500.0,0.00047142,7]
[358530031,1745236240700,-549.39229299,0.00047142,7]
[358530032,1745236240710,-500.0,0.00047142,7]
[358530033,1745236240719,-500.0,0.00047142,7]
[358530034,1745236240729,-551.57591507,0.00047142,7]
[358530035,1745236240737,-500.0,0.00047142,7]
[358530036,1745236240747,-500.0,0.00047142,7]
[358530037,1745236240758,-513.00526959,0.00047142,7]
[358530038,1745236240768,-520.12717481,0.00047142,7]
[358530039,1745236240779,-500.0,0.00047142,7]
[358530040,1745236240789,-622.43855752,0.00047142,7]
[358530041,1745236240803,-576.4988847,0.00047142,7]
[358530042,1745236240813,-500.0,0.00047142,7]
[358530043,1745236240822,-528.0446655,0.00047142,7]
[358530044,1745236240832,-500.0,0.00047142,7]
[358530045,1745236240842,-500.0,0.00047142,7]
[358530046,1745236240851,-500.0,0.00047142,7]
[358530047,1745236240861,-525.51196505,0.00047142,7]
[358530048,1745236240870,-500.0,0.00047142,7]
[358530049,1745236240882,-438.86394823,0.00047142,7]
[358530050,1745236240893,-200.04021235,0.00047142,7]
[358530051,1745236240903,-500.0,0.00047142,7]
[358530052,1745236240914,-555.60651194,0.00047142,7]
[358530053,1745236240923,-501.72196206,0.00047142,7]
[358530054,1745236240932,-500.0,0.00047142,7]
[358530055,1745236240941,-500.0,0.00047142,7]
[358530056,1745236240950,-500.0,0.00047142,7]
[358530057,1745236240961,-513.65292952,0.00047142,7]
[358530058,1745236240971,-500.0,0.00047142,2]
[358530059,1745236240981,-500.0,0.00047142,7]
[358530060,1745236240990,-500.0,0.00047142,7]
[358530061,1745236241000,-509.11085807,0.00047142,7]
[358530062,1745236241009,-500.0,0.00047142,7]
[358530063,1745236241018,-500.0,0.00047142,7]
[358530064,1745236241027,-500.0,0.00047142,7]
[358530065,1745236241037,-500.0,0.00047142,7]
[358530066,1745236241046,-522.83916211,0.00047142,7]
[358530067,1745236241055,-400.89218566,0.00047142,7]
[358530068,1745236241064,-500.0,0.00047142,7]
[358530069,1745236241074,-603.15575965,0.00047142,7]
[358530070,1745236241083,-500.0,0.00047142,7]
[358530071,1745236241092,-590.67732532,0.00047142,7]
[358530072,1745236241102,-500.0,0.00047142,7]
[358530073,1745236241112,-516.37593366,0.00047142,7]
[358530074,1745236241122,-500.0,0.00047142,7]
[358530075,1745236241132,-553.98824571,0.00047142,7]
[358530076,1745236241141,-500.0,0.00047142,7]
[358530077,1745236241150,-500.0,0.00047142,7]
[358530078,1745236241159,-1000.0,0.00047142,7]
[358530079,1745236241169,-500.0,0.00047142,7]
[358530080,1745236241178,-529.79302844,0.00047142,7]
[358530081,1745236241187,-528.7029028,0.00047142,7]
[358530082,1745236241197,-500.0,0.00047142,7]
[358530083,1745236241206,-500.0,0.00047142,7]
[358530084,1745236241215,-500.0,0.00047142,7]
[358530085,1745236241224,-500.0,0.00047142,7]
[358530086,1745236241234,-500.0,0.00047142,7]
[358530087,1745236241245,-584.11000833,0.00047142,7]
[358530088,1745236241255,-500.0,0.00047142,7]
[358530089,1745236241265,-548.37548356,0.00047142,7]
[358530090,1745236241277,-500.0,0.00047142,7]
[358530091,1745236241287,-500.0,0.00047142,7]
[358530092,1745236241297,-500.0,0.00047142,7]
[358530093,1745236241308,-795.85,0.00047142,2]
[358530094,1745236241317,-9329.8,0.00047142,2]
[358530095,1745236241328,-299.5,0.00047144,2]
[358530096,1745236241338,-186.82375619,0.00047144,79]
[358530097,1745236241347,-996.432,0.00047144,79]
[358530098,1745236241356,-532.14,0.00047172,2]
[358530099,1745236241365,-1631.75636447,0.00047183,15]
[358530100,1745236241376,-278.57,0.0004719,2]
[358530101,1745236241386,-8398.37,0.00047193,2]
[358530102,1745236241395,-1552.00627447,0.00047359,15]
[358530103,1745236241405,-946.78563424,0.000474,2]
[358530104,1745236241414,-177.86,0.00047409,2]
[358530105,1745236241423,-21986.617606,0.00047439,4]
[358530106,1745236241433,-1631.75636447,0.00047448,15]
[358530107,1745236241443,-350.0,0.0004745,10]
[358530108,1745236241452,-390.62167307,0.00047458,8]
[358530109,1745236241461,-500.0,0.00047459,7]
[358530110,1745236241471,-500.0,0.00047459,7]
[358530111,1745236241479,-177.90549024,0.00047459,7]
[358530112,1745236241489,-500.0,0.00047459,7]
[358530113,1745236241498,-500.0,0.00047459,7]
[358530114,1745236241507,-500.0,0.00047459,7]
[358530115,1745236241517,-567.84039911,0.00047459,7]
[358530116,1745236241528,-574.38,0.00047459,7]
[358530117,1745236241539,-500.0,0.00047459,7]
[358530118,1745236241548,-500.0,0.00047459,7]
[358530119,1745236241557,-213.70876054,0.00047459,7]
[358530120,1745236241567,-500.0,0.00047459,7]
[358530121,1745236241576,-500.0,0.00047459,7]
[358530122,1745236241585,-500.0,0.00047459,7]
[358530123,1745236241594,-512.07217433,0.00047459,7]
[358530124,1745236241603,-537.32023234,0.00047459,7]
[358530125,1745236241613,-500.0,0.00047459,7]
[358530126,1745236241622,-500.0,0.00047459,7]
[358530127,1745236241631,-500.0,0.00047459,7]
[358530128,1745236241640,-500.0,0.00047459,7]
[358530129,1745236241649,-551.97794718,0.00047459,7]
[358530130,1745236241660,-500.0,0.00047459,7]
[358530131,1745236241670,-500.0,0.00047459,7]
[358530132,1745236241679,-500.0,0.00047459,7]
[358530133,1745236241688,-21986.617606,0.00047463,4]
[358530134,1745236241697,-1552.00627447,0.00047516,15]
[358530135,1745236241706,-500.0,0.00047663,7]
[358530136,1745236241716,-517.81460755,0.00047663,7]
[358530137,1745236241726,-524.84952752,0.00047663,7]
[358530138,1745236241735,-502.60956591,0.00047663,7]
[358530139,1745236241744,-500.0,0.00047672,7]
[358530140,1745236241753,-514.13454002,0.00047672,7]
[358530141,1745236241762,-1552.00627447,0.00047673,15]
[358530142,1745236241773,-770.0,0.0004769,5]
[358530143,1745236241782,-734.5853996,0.0004771,2]
[358530144,1745236241791,-1631.75636447,0.00047713,15]
[358530145,1745236241802,-300.0,0.00047722,2]
[358530146,1745236241811,-4079.95,0.00047788,2]
[358530147,1745236241821,-21986.617606,0.00047795,4]
[358530148,1745236241831,-4706.94,0.0004783,2]
[358530149,1745236241842,-1552.00627447,0.0004783,15]
[358530150,1745236241851,-257.42,0.00047867,4]
[358530151,1745236241862,-153.44,0.00047868,2]
[358530152,1745236241875,-723.32877295,0.00047873,20]
[358530153,1745236241885,-500.70307603,0.00047873,10]
[358530154,1745236241894,-502.46816098,0.00047873,10]
[358530155,1745236241904,-299.93494927,0.00047873,10]
[358530156,1745236241914,-500.0,0.00047873,10]
[358530157,1745236241925,-209.00893444,0.00047873,10]
[358530158,1745236241934,-500.0,0.00047873,10]
[358530159,1745236241944,-623.76448604,0.00047873,10]
[358530160,1745236241954,-201.64830264,0.00047877,120]
[358530161,1745236241965,-500.0,0.00047877,120]
[358530162,1745236241975,-500.0,0.00047877,120]
[358530163,1745236241986,-500.0,0.00047877,120]
[358530164,1745236241996,-491.17122537,0.00047877,120]
[358530165,1745236242007,-500.0,0.00047877,120]
[358530166,1745236242018,-1091.69,0.00047877,2]
[358530167,1745236242027,-500.0,0.00047877,7]
[358530168,1745236242037,-515.53,0.00047877,7]
[358530169,1745236242046,-21986.617606,0.00047878,4]
[358530170,1745236242056,-21986.617606,0.0004788,4]
[358530171,1745236242067,-542.53878016,0.00047888,7]
[358530172,1745236242076,-213.1,0.00047888,7]
[358530173,1745236242086,-500.0,0.00047888,7]
[358530174,1745236242096,-500.0,0.00047888,7]
[358530175,1745236242107,-229.41499577,0.00047888,7]
[358530176,1745236242117,-500.0,0.00047888,7]
[358530177,1745236242127,-500.0,0.00047888,7]
[358530178,1745236242137,-528.50294025,0.00047888,7]
[358530179,1745236242147,-195.45733755,0.00047888,7]
[358530180,1745236242158,-247.72684685,0.00047888,7]
[358530181,1745236242167,-170.73244895,0.00047888,7]
[358530182,1745236242176,-500.0,0.00047888,7]
[358530183,1745236242187,-500.0,0.00047888,7]
[358530184,1745236242196,-500.0,0.00047888,7]
[358530185,1745236242207,-500.0,0.00047888,7]
[358530186,1745236242217,-500.0,0.00047888,7]
[358530187,1745236242226,-247.13627915,0.00047888,7]
[358530188,1745236242235,-539.75018618,0.00047888,7]
[358530189,1745236242244,-500.0,0.00047888,7]
[358530190,1745236242253,-500.0,0.00047888,7]
[358530191,1745236242262,-500.0,0.00047888,7]
[358530192,1745236242273,-535.34739309,0.00047888,7]
[358530193,1745236242283,-500.0,0.00047888,7]
[358530194,1745236242294,-567.84621715,0.00047888,7]
[358530195,1745236242305,-170.33126059,0.00047888,7]
[358530196,1745236242315,-589.81213946,0.00047888,7]
[358530197,1745236242327,-329.90160073,0.00047888,7]
[358530198,1745236242336,-500.0,0.00047888,7]
[358530199,1745236242346,-500.0,0.00047888,7]
[358530200,1745236242355,-500.0,0.00047888,7]
[358530201,1745236242364,-509.72906875,0.00047888,7]
[358530202,1745236242374,-500.0,0.00047888,7]
[358530203,1745236242384,-500.0,0.00047888,7]
[358530204,1745236242394,-500.0,0.00047888,7]
[358530205,1745236242405,-500.0,0.00047888,7]
[358530206,1745236242415,-500.0,0.00047888,7]
[358530207,1745236242424,-500.0,0.00047888,7]
[358530208,1745236242433,-500.0,0.00047888,7]
[358530209,1745236242443,-500.0,0.00047888,7]
[358530210,1745236242452,-500.0,0.00047888,7]
[358530211,1745236242462,-500.0,0.00047888,7]
[358530212,1745236242471,-550.48563296,0.00047888,7]
[358530213,1745236242480,-538.24802769,0.00047888,7]
[358530214,1745236242489,-500.0,0.00047888,7]
[358530215,1745236242500,-500.0,0.00047888,7]
[358530216,1745236242509,-500.0,0.00047888,7]
[358530217,1745236242518,-500.0,0.00047888,7]
[358530218,1745236242528,-500.0,0.00047888,7]
[358530219,1745236242537,-500.0,0.00047888,7]
[358530220,1745236242547,-465.23,0.00047888,7]
[358530221,1745236242557,-500.0,0.00047888,7]
[358530222,1745236242566,-500.0,0.00047888,7]
[358530223,1745236242576,-500.0,0.00047888,7]
[358530224,1745236242586,-500.0,0.00047888,7]
[358530225,1745236242595,-500.0,0.00047888,7]
[358530226,1745236242604,-500.0,0.00047888,7]
[358530227,1745236242615,-500.0,0.00047888,7]
[358530228,1745236242624,-500.0,0.00047888,7]
[358530229,1745236242633,-2000.0,0.00047888,7]
[358530230,1745236242642,-500.0,0.00047888,7]
[358530231,1745236242651,-500.0,0.00047888,7]
[358530232,1745236242661,-569.29,0.00047888,7]
[358530233,1745236242670,-500.0,0.00047888,7]
[358530234,1745236242679,-500.0,0.00047888,7]
[358530235,1745236242688,-514.61248297,0.00047888,7]
[358530236,1745236242698,-500.0,0.00047888,7]
[358530237,1745236242707,-500.0,0.00047888,7]
[358530238,1745236242717,-500.0,0.00047888,7]
[358530239,1745236242727,-500.0,0.00047888,7]
[358530240,1745236242737,-545.55730455,0.00047888,7]
[358530241,1745236242747,-500.0,0.00047888,7]
[358530242,1745236242759,-500.0,0.00047888,7]
[358530243,1745236242769,-500.0,0.00047888,7]
[358530244,1745236242779,-500.0,0.00047888,7]
[358530245,1745236242788,-646.47631652,0.00047888,7]
[358530246,1745236242799,-500.0,0.00047888,7]
[358530247,1745236242809,-500.0,0.00047888,7]
[358530248,1745236242818,-557.78118552,0.00047888,7]
[358530249,1745236242827,-300.0,0.00047888,7]
[358530250,1745236242835,-590.2124972,0.00047888,7]
[358530251,1745236242846,-500.0,0.00047888,7]
[358530252,1745236242856,-500.0,0.00047888,7]
[358530253,1745236242865,-500.0,0.00047888,7]
[358530254,1745236242875,-500.0,0.00047888,7]
[358530255,1745236242885,-500.0,0.00047888,7]
[358530256,1745236242895,-500.0,0.00047888,7]
[358530257,1745236242904,-500.0,0.00047889,7]
[358530258,1745236242913,-2728.34,0.00047889,7]
[358530259,1745236242923,-953.93,0.00047889,7]
[358530260,1745236242932,-500.0,0.00047899,7]
[358530262,1745236242942,-703.9,0.00047899,7]
[358530263,1745236242951,-500.0,0.00047899,7]
[358530264,1745236242962,-500.0,0.00047899,7]
[358530265,1745236242971,-3741.18,0.00047899,7]
[358530266,1745236242980,-500.0,0.00047899,7]
[358530267,1745236242990,-500.0,0.00047899,7]
[358530268,1745236242999,-500.0,0.00047899,7]
[358530269,1745236243008,-500.0,0.00047899,7]
[358530270,1745236243018,-500.0,0.00047899,7]
[358530271,1745236243028,-500.0,0.00047899,7]
[358530272,1745236243037,-500.0,0.00047899,7]
[358530274,1745236243047,-500.0,0.00047899,7]
[358530276,1745236243056,-500.0,0.00047899,7]
[358530277,1745236243065,-500.0,0.00047899,2]
[358530278,1745236243074,-500.0,0.00047899,7]
[358530279,1745236243083,-4600.0,0.000479,17]
[358530280,1745236243093,-150.0,0.00047935,7]
[358530281,1745236243102,-176.8979223,0.00047945,120]
[358530282,1745236243111,-150.0,0.00047945,120]
[358530283,1745236243120,-150.0,0.00047971,7]
[358530284,1745236243129,-1631.75636447,0.00047978,15]
[358530285,1745236243139,-1552.00627447,0.00047987,15]
[358530286,1745236243148,-500.0,0.00047988,7]
[358530287,1745236243157,-9300.0,0.00048,17]
[358530288,1745236243167,-172.0,0.00048,90]
[358530289,1745236243176,-500.0,0.00048,120]
[358530290,1745236243185,-500.0,0.00048,120]
[358530291,1745236243194,-500.0,0.00048,120]
[358530292,1745236243204,-500.0,0.00048,120]
[358530293,1745236243213,-500.0,0.00048,120]
[358530294,1745236243222,-500.0,0.00048,120]
[358530295,1745236243231,-500.0,0.00048,120]
[358530296,1745236243240,-500.0,0.00048,120]
[358530297,1745236243249,-734.5853996,0.00048043,2]
[358530298,1745236243259,-1541.15,0.00048064,2]
[358530299,1745236243268,-200.0,0.00048087,2]
[358530300,1745236243277,-21986.617606,0.0004809,4]
[358530301,1745236243286,-13900.0,0.000481,17]
[358530302,1745236243295,-150.0,0.00048102,7]
[358530303,1745236243304,-1552.00627447,0.00048145,15]
[358530304,1745236243315,-1269.13,0.00048191,5]
[358530305,1745236243324,-1208.92,0.00048191,5]
[358530306,1745236243334,-18600.0,0.000482,17]
[358530307,1745236243343,-1631.75636447,0.00048243,15]
[358530308,1745236243352,-21986.617606,0.00048263,4]
[358530309,1745236243362,-319.34433626,0.00048273,10]
[358530310,1745236243371,-734.5853996,0.0004828,2]
[358530311,1745236243380,-10252.5949908,0.0004829,5]
[358530312,1745236243484,-1810.0,0.000483,2]
[358530313,1745236243506,-23200.0,0.000483,17]
[358530314,1745236243516,-1552.00627447,0.00048302,15]
[358530315,1745236243526,-1091.69,0.0004838,2]
[358530316,1745236243536,-500.0,0.0004838,7]
[358530317,1745236243545,-515.53,0.0004838,7]
[358530318,1745236243555,-21986.617606,0.0004838,4]
[358530319,1745236243564,-10252.5949908,0.0004838,5]
[358530320,1745236243573,-10252.5949908,0.0004839,5]
[358530321,1745236243583,-2246.84018034,0.0004839,2]
[358530322,1745236243593,-500.0,0.00048399,7]
[358530323,1745236243602,-4600.0,0.000484,17]
[358530324,1745236243612,-1624.79208921,0.0004841,2]
[358530325,1745236243621,-150.0,0.00048441,7]
[358530327,1745236243631,-1250.37,0.00048457,5]
[358530328,1745236243640,-1250.28,0.00048457,5]
[358530329,1745236243650,-1234.09,0.00048458,5]
[358530330,1745236243659,-1227.85,0.00048458,5]
[358530331,1745236243668,-1552.00627447,0.00048459,15]
[358530332,1745236243678,-4600.0,0.000485,17]
[358530333,1745236243687,-1631.75636447,0.00048508,15]
[358530334,1745236243696,-253.38602874,0.00048529,26]
[358530335,1745236243705,-2510.2322,0.00048551,2]
[358530336,1745236243715,-1183.6108832,0.0004858,120]
[358530337,1745236243724,-10252.5949908,0.0004859,5]
[358530338,1745236243733,-150.0,0.00048593,7]
[358530339,1745236243742,-152.59,0.000486,45]
[358530340,1745236243751,-152.59,0.000486,45]
[358530341,1745236243760,-152.59,0.000486,45]